bitfinex-derivatives/quotes_ETHF0:USTF0_20250807
["timestamp","ask_amount","ask_price","bid_price","bid_amount"]
[1754564505007,23.8643,3818.0,3817.9,4.0915]
[1754564505208,23.8643,3818.0,3817.9,3.2078]
[1754564505810,24.56111296,3818.0,3817.9,3.2078]
[1754564506512,24.56111296,3818.0,3817.9,4.0915]
[1754564506706,24.56111296,3818.0,3817.9,5.4421]
[1754564506909,24.55611296,3818.0,3817.9,7.1112]
[1754564507100,0.69681296,3818.0,3817.9,7.1112]
[1754564507413,5.04134,3818.6,3818.5,2.929]
[1754564507711,2.69488,3818.3,3818.2,2.5505]
[1754564507908,23.8593,3818.3,3818.2,3.9034]
[1754564508209,6.12503978,3818.3,3818.2,3.9034]
[1754564508412,23.8593,3818.3,3818.2,3.9034]
[1754564508607,21.5128,3818.3,3818.2,3.9034]
[1754564508808,0.9106,3818.3,3818.2,3.9034]
[1754564509005,19.3416,3818.3,3818.2,3.9048]
[1754564509207,19.3416,3818.3,3818.2,3.9034]
[1754564509410,22.4782,3818.3,3818.2,3.9034]
[1754564509609,19.9421,3818.3,3818.2,3.9034]
[1754564509914,0.9106,3818.3,3818.2,3.9034]
[1754564510111,19.3416,3818.3,3818.2,3.9034]
[1754564510300,0.9106,3818.3,3818.2,3.9034]
[1754564510502,19.3416,3818.3,3818.2,3.9034]
[1754564510902,20.6331,3818.3,3818.2,3.9034]
[1754564511602,1.12413,3818.7,3818.5,0.6947]
[1754564511805,19.3416,3818.6,3818.5,1.5807]
[1754564512005,19.3416,3818.6,3818.5,4.7885]
[1754564512006,19.9421,3818.6,3818.5,4.7885]
[1754564512214,19.9421,3818.6,3818.5,7.1112]
[1754564512713,2.2021,3818.6,3818.5,7.1112]
[1754564512909,20.6321,3818.6,3818.5,7.1112]
[1754564513109,1.5111,3818.6,3818.5,7.1112]
[1754564513413,18.43,3818.6,3818.5,7.1126]
[1754564513911,19.3406,3818.6,3818.5,7.1126]
[1754564514416,23.8583,3818.6,3818.5,3.2078]
[1754564515215,5.952,3818.2,3818.1,3.2078]
[1754564515414,24.382,3818.2,3818.1,3.2078]
[1754564515723,24.382,3818.2,3818.1,4.0915]
[1754564516023,24.382,3818.2,3818.1,5.4421]
[1754564516612,4.5709,3818.2,3818.1,7.7189]
[1754564516813,22.0345,3818.2,3818.1,7.7189]
[1754564517017,19.8633,3818.2,3818.1,7.7189]
[1754564517223,18.9527,3818.2,3818.1,8.6022]
[1754564517514,0.9654,3818.6,3818.1,8.6022]
[1754564517709,1.43425,3818.5,3818.4,3.7276]
[1754564517917,19.86325,3818.5,3818.4,5.3944]
[1754564518121,23.70006453,3818.5,3818.4,4.5111]
[1754564518418,25.08116453,3818.5,3818.4,4.5111]
[1754564518617,23.70006453,3818.5,3818.4,4.5111]
[1754564518821,22.99985,3818.5,3818.4,4.5111]
[1754564520111,0.5237,3818.2,3818.1,3.2078]
[1754564520422,1.9767,3818.2,3818.1,7.6785]
[1754564520622,0.5237,3818.2,3818.1,8.5788]
[1754564522316,2.6757,3818.2,3818.1,8.5788]
[1754564522516,0.52373,3817.8,3817.7,3.2078]
[1754564522715,5.96063,3817.8,3817.7,3.2078]
[1754564524522,5.96063,3817.8,3817.7,4.0787]
[1754564525120,5.96063,3817.8,3817.7,3.2078]
[1754564525321,5.96068,3817.5,3817.4,4.4707]
[1754564525625,2.70178,3817.5,3817.3,3.2078]
[1754564525818,5.4369,3817.4,3817.3,3.2078]
[1754564526023,5.4369,3817.4,3817.3,6.2807]
[1754564526218,0.892,3817.4,3817.3,7.6785]
[1754564526527,3.1187,3817.4,3817.3,7.6785]
[1754564526724,4.0367,3817.4,3817.3,7.6785]
[1754564528320,5.4369,3817.4,3817.3,7.6785]
[1754564529018,5.4369,3817.4,3817.3,3.2078]
[1754564529425,2.70184,3817.1,3817.0,3.0729]
[1754564529719,21.498,3817.1,3817.0,3.9732]
[1754564529920,20.58,3817.1,3817.0,5.371]
[1754564530522,2.152,3817.1,3817.0,5.371]
[1754564530723,0.892,3817.3,3817.1,2.9743]
[1754564530925,18.429,3817.5,3817.4,5.371]
[1754564531425,0.52378,3817.6,3817.4,5.371]
[1754564531731,20.2136437,3817.6,3817.5,5.371]
[1754564531926,1.6657,3817.2,3816.9,4.15096142]
[1754564532228,5.96075,3817.0,3816.9,6.41966142]
[1754564532424,5.96075,3817.0,3816.9,0.34581142]
[1754564532823,1.78395,3816.3,3816.2,3.4718]
[1754564533016,1.78395,3816.3,3815.4,3.2078]
[1754564533017,2.3669,3816.2,3815.5,3.297]
[1754564533328,5.4369,3816.0,3815.9,2.2687]
[1754564533529,0.892,3816.0,3815.9,5.371]
[1754564534026,1.453,3816.0,3815.9,5.371]
[1754564534623,0.9667,3816.3,3815.9,3.9958]
[1754564534828,21.5487,3816.2,3816.1,4.4707]
[1754564535129,5.4369,3816.2,3816.1,4.4707]
[1754564535432,5.4369,3816.2,3816.1,2.2687]
[1754564535629,5.4369,3816.2,3816.1,4.4707]
[1754564535630,4.0367,3816.2,3816.1,4.4707]
[1754564536429,5.4369,3816.2,3815.9,3.7318]
[1754564536726,5.4369,3816.0,3815.9,0.8709]
[1754564537034,0.52407,3815.5,3815.1,1.3978]
[1754564537231,4.56077,3815.5,3815.4,0.8709]
[1754564537428,1.30996,3816.1,3815.0,4.73082]
[1754564537429,1.26,3815.1,3815.0,2.074]
[1754564537739,1.31029,3815.1,3814.3,0.9989]
[1754564537934,2.2922,3814.9,3814.2,3.2078]
[1754564538232,3.2589,3814.3,3814.2,4.6056]
[1754564538631,0.892,3814.3,3814.2,5.6045]
[1754564538832,0.52422,3814.3,3813.9,0.9439033]
[1754564539037,3.2589,3814.0,3813.9,0.9439033]
[1754564539335,0.9667,3814.3,3813.9,7.4487033]
[1754564539536,18.468,3814.4,3814.2,3.297]
[1754564539734,0.892,3814.6,3814.3,6.5048]
[1754564539929,0.892,3814.8,3814.5,0.9003]
[1754564540236,0.892,3814.8,3814.6,0.52417]
[1754564540435,21.6808,3814.9,3814.6,0.52417]
[1754564540436,0.892,3814.9,3814.7,5.6045]
[1754564540732,0.892,3815.2,3815.1,0.9989]
[1754564540932,0.892,3815.2,3815.1,3.297]
[1754564541133,0.892,3815.2,3814.7,3.2078]
[1754564541134,18.47,3815.6,3815.3,1.3978]
[1754564541329,1.8587,3815.5,3815.4,0.9989]
[1754564541529,0.892,3815.5,3815.4,0.9989]
[1754564541829,1.8587,3815.5,3815.4,0.9989]
[1754564542134,1.8587,3815.5,3815.4,2.3967]
[1754564542437,1.8587,3815.5,3815.1,3.2078]
[1754564542633,0.9667,3815.4,3815.3,2.3967]
[1754564542830,2.3669,3815.4,3815.3,1.3978]
[1754564543138,0.52408,3815.3,3815.0,0.9989]
[1754564543436,37.733,3816.2,3815.4,1.3978]
[1754564543624,1.8587,3816.4,3815.8,3.297]
[1754564543935,3.2589,3816.4,3815.9,1.3978]
[1754564544130,18.469,3816.5,3816.0,1.3978]
[1754564544131,0.52399,3816.1,3816.0,1.3978]
[1754564544328,3.78293,3815.7,3815.3,0.9989]
[1754564544529,0.892,3815.7,3815.4,0.9989]
[1754564544729,0.892,3815.7,3815.6,2.3967]
[1754564544939,1.41604,3815.6,3815.1,5.6045]
[1754564545128,18.467,3815.9,3815.2,2.3967]
[1754564545429,1.41606,3815.5,3815.4,2.3967]
[1754564545735,1.41601,3815.8,3815.4,3.297]
[1754564545939,1.41604,3815.6,3815.5,3.297]
[1754564546331,2.38274,3815.6,3815.5,2.3967]
[1754564546935,0.52404,3815.6,3815.5,6.5048]
[1754564547136,1.41604,3815.6,3815.5,5.6045]
[1754564547336,3.78294,3815.6,3815.5,4.6056]
[1754564547539,3.78294,3815.6,3815.5,3.2078]
[1754564547841,2.3828,3815.2,3815.1,4.6056]
[1754564548241,2.3828,3815.2,3815.1,5.6045]
[1754564548740,3.783,3815.2,3815.1,5.6045]
[1754564548941,2.783,3815.2,3815.1,5.6045]
[1754564549238,3.3071,3815.2,3815.1,5.6045]
[1754564550238,0.5241,3815.2,3815.1,5.6045]
[1754564550437,2.6954,3815.2,3815.1,5.6045]
[1754564550938,3.6846,3815.2,3815.1,5.6045]
[1754564551437,3.6846,3815.2,3815.1,3.2078]
[1754564552242,3.6846,3815.2,3815.1,4.593]
[1754564552543,1.3642,3815.2,3815.1,5.6141]
[1754564552842,0.52409,3815.3,3815.2,3.2739]
[1754564553039,0.52408,3815.4,3815.1,3.2078]
[1754564553245,0.8401,3815.7,3815.1,3.73191]
[1754564553441,0.52405,3815.6,3815.5,3.2078]
[1754564553741,18.96204,3815.7,3815.5,3.2078]
[1754564553942,18.96204,3815.7,3815.6,3.2739]
[1754564554544,0.52402,3815.9,3815.6,3.79793]
[1754564554747,0.52402,3815.9,3815.8,3.2739]
[1754564555240,2.64106,3816.4,3815.5,3.2078]
[1754564555241,3.2078,3816.6,3815.5,3.2078]
[1754564555537,0.52389,3816.8,3816.3,3.2078]
[1754564555747,0.8401,3816.5,3816.4,2.4063]
[1754564555941,3.1605,3816.5,3816.4,2.4063]
[1754564556440,0.8401,3816.5,3816.4,2.4063]
[1754564556638,0.8401,3816.5,3816.4,3.2739]
[1754564556845,1.3312,3816.4,3816.1,1.3852]
[1754564557142,0.9892,3816.0,3815.9,4.2289]
[1754564557345,1.8293,3816.0,3815.9,4.2289]
[1754564557842,3.1605,3816.0,3815.9,3.2078]
[1754564558043,3.1605,3816.0,3815.9,4.593]
[1754564558347,1.36407,3816.2,3816.1,3.2739]
[1754564558540,0.9892,3816.5,3816.1,1.39158]
[1754564558541,1.51313,3816.5,3816.1,1.39158]
[1754564558740,1.51313,3816.5,3816.3,2.4063]
[1754564558741,0.8401,3816.4,3816.3,2.4063]
[1754564559242,7.38465322,3823.7,3816.4,0.8676]
[1754564559243,3.2078,3817.0,3816.4,0.8676]
[1754564559545,3.2078,3817.0,3816.3,3.2078]
[1754564559546,0.8401,3817.3,3817.1,0.52383]
[1754564559744,0.8401,3817.2,3817.1,0.52383]
[1754564559951,0.9892,3817.3,3816.7,3.2078]
[1754564560143,1.36394,3817.2,3817.0,2.4063]
[1754564560443,1.36394,3817.2,3815.8,1.31004]
[1754564560444,0.52393,3816.5,3816.3,1.3852]
[1754564560654,3.68445,3816.3,3816.2,3.2078]
[1754564560945,3.68445,3816.3,3816.2,4.593]
[1754564561144,1.51321,3815.9,3815.8,3.2078]
[1754564561442,0.52394,3816.5,3815.9,2.4063]
[1754564561643,0.9892,3816.4,3816.3,1.3852]
[1754564561839,0.9892,3816.4,3816.3,2.4063]
[1754564562241,3.1605,3816.4,3816.3,2.4063]
[1754564562447,3.1605,3816.4,3816.3,1.3852]
[1754564562643,2.3204,3816.6,3816.4,2.4063]
[1754564562849,3.1605,3816.5,3816.4,2.4063]
[1754564564853,0.8401,3816.5,3816.4,2.4063]
[1754564565046,3.2078,3817.2,3816.6,0.8676]
[1754564565047,2.35316,3817.0,3816.6,0.8676]
[1754564565252,1.8293,3817.0,3816.9,2.4063]
[1754564565855,5.3051,3817.2,3817.1,3.1841]
[1754564566055,5.3051,3817.2,3817.1,4.5693]
[1754564566262,8.4692,3817.2,3817.1,4.5693]
[1754564566560,7.138,3817.2,3817.1,4.5693]
[1754564566758,8.4692,3817.2,3817.1,4.5693]
[1754564567855,3.2078,3817.6,3817.1,2.163]
[1754564568061,2.62471,3817.3,3817.2,1.931]
[1754564568255,5.78521,3817.3,3817.2,1.931]
[1754564568454,2.1009,3817.1,3817.0,3.3162]
[1754564568659,5.2614,3817.1,3817.0,3.3162]
[1754564568966,3.9302,3817.1,3817.0,4.5693]
[1754564569257,1.95842,3817.3,3817.2,3.1841]
[1754564569459,2.62112,3817.3,3817.2,4.5693]
[1754564569660,5.78522,3817.3,3817.2,4.5693]
[1754564570373,2.62111,3817.3,3817.2,5.4369]
[1754564570665,1.95841,3817.3,3817.2,5.4369]
[1754564571453,3.61031,3817.3,3817.2,4.5693]
[1754564571856,4.45401,3817.3,3817.2,4.5693]
[1754564572456,4.45401,3817.3,3817.2,3.5482]
[1754564572759,0.52381,3817.3,3817.2,5.4369]
[1754564572955,3.61031,3817.3,3817.2,4.5693]
[1754564573268,5.78521,3817.3,3817.2,4.5693]
[1754564575260,4.45401,3817.3,3817.2,2.9385]
[1754564575461,5.78524,3817.1,3817.0,8.30095]
[1754564575764,4.78524,3817.1,3817.0,8.30095]
[1754564576057,5.30908,3817.1,3817.0,7.7771]
[1754564577459,5.30908,3817.1,3817.0,4.593]
[1754564577660,5.30908,3817.1,3817.0,2.2951]
[1754564577868,5.30908,3817.1,3817.0,4.5693]
[1754564578058,4.78524,3817.1,3817.0,4.5693]
[1754564578959,3.9302,3817.1,3817.0,4.5693]
[1754564579265,3.0865,3817.1,3817.0,5.4325]
[1754564579574,0.52384,3817.2,3817.1,0.52384]
[1754564579770,4.51728,3817.6,3817.5,4.3867]
[1754564579771,23.32648,3817.6,3817.5,4.3867]
[1754564580064,23.32648,3817.6,3817.5,3.3696]
[1754564580065,24.22548,3817.6,3817.5,3.3696]
[1754564580260,24.22548,3817.6,3817.5,2.1277]
[1754564580464,24.22548,3817.6,3817.5,0.856]
[1754564580768,2.6609,3817.4,3817.3,3.89341]
[1754564580960,5.7955,3817.4,3817.3,3.3696]
[1754564581159,5.7955,3817.4,3817.3,2.1277]
[1754564581965,5.7955,3817.4,3817.3,4.3867]
[1754564582268,5.2717,3817.4,3817.3,4.3867]
[1754564582756,3.9708,3817.4,3817.3,4.3867]
[1754564583265,5.2717,3817.4,3817.3,3.8234]
[1754564583465,5.2717,3817.4,3817.3,4.3867]
[1754564583860,0.52382,3817.3,3817.1,3.2078]
[1754564584161,4.94249,3816.8,3816.7,3.2078]
[1754564584361,5.79559,3816.8,3816.7,3.2078]
[1754564584761,0.8531,3816.8,3816.7,7.5945]
[1754564584964,3.9708,3816.8,3816.7,7.5945]
[1754564585168,5.2717,3816.8,3816.7,7.5945]
[1754564585469,5.2717,3816.8,3816.7,4.0638]
[1754564585970,5.2717,3816.8,3816.7,3.2078]
[1754564586258,3.4839,3816.6,3816.5,0.52391]
[1754564586468,5.2717,3816.6,3816.5,0.52391]
[1754564586658,5.2717,3816.6,3816.5,1.37991]
[1754564586858,2.1999,3816.6,3816.5,3.89351]
[1754564587065,4.4947,3816.8,3816.7,3.3696]
[1754564587261,3.0887,3816.3,3815.7,0.52403]
[1754564587468,3.4839,3815.7,3815.6,4.3867]
[1754564587970,5.79569,3816.1,3816.0,4.3867]
[1754564588170,24.22469,3816.1,3816.0,4.3867]
[1754564588567,20.5661,3816.1,3816.0,4.3867]
[1754564588770,20.5661,3816.1,3816.0,5.2499]
[1754564588967,0.52398,3816.2,3816.1,4.91068]
[1754564589162,1.4495,3816.2,3816.1,4.3867]
[1754564589361,4.94254,3816.5,3816.4,4.3867]
[1754564589562,2.183,3816.3,3816.2,0.52396]
[1754564589762,19.7299,3816.5,3816.1,0.856]
[1754564589763,2.70697,3816.2,3816.1,0.856]
[1754564589970,5.79567,3816.2,3816.1,2.1277]
[1754564590868,5.79567,3816.2,3816.1,2.8063]
[1754564591268,5.79567,3816.2,3816.1,3.3696]
[1754564591573,5.2717,3816.2,3816.1,4.3867]
[1754564591769,5.10811,3815.9,3815.8,1.38002]
[1754564592068,0.8531,3816.4,3815.9,1.2717]
[1754564592269,3.0718,3816.4,3816.3,4.3867]
[1754564592478,2.1371,3816.4,3816.3,5.77385]
[1754564592669,19.8785,3816.6,3816.5,5.2499]
[1754564592975,40.9298,3817.1,3816.5,5.2499]
[1754564592976,5.3449,3817.1,3817.0,2.0979]
[1754564593175,26.9085,3817.1,3817.0,4.3867]
[1754564593373,26.9085,3817.1,3816.5,0.8632]
[1754564593374,0.52388,3816.9,3816.7,0.52389]
[1754564593570,3.9708,3816.8,3816.7,4.91059]
[1754564593875,3.9708,3816.8,3816.7,3.33019]
[1754564594073,3.9708,3816.8,3816.7,2.8063]
[1754564594272,3.0887,3816.8,3816.3,4.4795]
[1754564594478,3.04523,3816.5,3816.4,4.3867]
[1754564594680,3.64163,3816.5,3816.4,4.3867]
[1754564594878,3.1177,3816.5,3816.4,4.3867]
[1754564595075,2.1371,3816.5,3816.4,4.3867]
[1754564595273,2.1371,3816.5,3816.4,5.2499]
[1754564596275,3.9708,3816.9,3816.8,4.34728]
[1754564596577,22.4008,3816.9,3816.8,4.91058]
[1754564596773,24.22558,3816.9,3816.8,4.3867]
[1754564596967,24.22558,3816.9,3816.8,3.3696]
[1754564597168,3.9708,3816.3,3816.2,4.91066]
[1754564597373,3.9708,3816.3,3816.2,4.3867]
[1754564597573,4.9593,3816.3,3816.2,4.3867]
[1754564597773,4.9593,3816.3,3816.2,3.3696]
[1754564597977,3.0887,3816.2,3816.0,2.1277]
[1754564598177,5.2717,3816.1,3816.0,3.3696]
[1754564598376,5.79569,3816.1,3816.0,4.3867]
[1754564598677,1.21165,3815.7,3815.6,2.8063]
[1754564598876,5.79575,3815.7,3815.6,3.3696]
[1754564599277,5.79575,3815.7,3815.6,4.91076]
[1754564599781,5.79575,3815.7,3815.6,4.3867]
[1754564600977,5.2717,3815.7,3815.6,4.3867]
[1754564603680,0.5964,3816.0,3815.9,3.67601]
[1754564603877,0.5964,3816.0,3815.9,5.77391]
[1754564604079,3.0361,3816.0,3815.9,5.77391]
[1754564604379,3.9708,3816.0,3815.9,5.77391]
[1754564604680,3.9708,3816.0,3815.9,4.3867]
[1754564604879,5.2717,3816.0,3815.9,4.3867]
[1754564605684,5.2717,3816.0,3815.9,2.1277]
[1754564605985,5.2717,3815.7,3815.6,6.0141]
[1754564606980,5.2717,3815.7,3815.6,7.5945]
[1754564609277,2.01941,3816.0,3815.9,5.6865]
[1754564609482,5.89041,3816.0,3815.9,4.2636]
[1754564610591,5.3664,3816.0,3815.9,4.2636]
[1754564611785,0.9024,3815.9,3815.8,0.52402]
[1754564611978,3.0134,3815.9,3815.8,3.48552]
[1754564612385,5.3664,3815.9,3815.8,3.2966]
[1754564613090,23.7964,3815.9,3815.8,1.4921]
[1754564613486,23.7964,3815.9,3815.8,2.7261]
[1754564615194,2.353,3815.8,3815.4,1.234]
[1754564615391,5.89047,3815.5,3815.4,2.7261]
[1754564615790,5.89047,3815.5,3815.4,4.2636]
[1754564616893,2.01947,3815.5,3815.4,5.1625]
[1754564617187,5.89047,3815.5,3815.4,5.1625]
[1754564617398,0.52401,3816.0,3815.8,5.68652]
[1754564617590,0.52401,3816.0,3815.9,5.1625]
[1754564617789,2.1659,3816.0,3815.9,2.0626]
[1754564618192,0.69823187,3816.1,3816.0,5.1625]
[1754564618496,0.69823187,3816.2,3816.0,5.68649]
[1754564618792,1.0024,3817.1,3816.5,2.54383]
[1754564618994,3.1134,3817.1,3817.0,4.78745]
[1754564619296,22.24046137,3817.1,3817.0,4.78745]
[1754564619491,6.06446137,3817.1,3817.0,4.78745]
[1754564619692,0.9024,3817.2,3817.1,5.1625]
[1754564619892,20.62240122,3817.2,3817.1,5.1625]
[1754564620097,19.9244,3817.2,3817.1,5.1625]
[1754564620396,1.4954,3817.2,3817.1,5.1625]
[1754564621994,5.3664,3817.2,3817.1,3.2966]
[1754564622601,5.3664,3817.2,3817.1,4.2636]
[1754564624695,4.0158,3817.2,3817.1,4.2636]
[1754564625092,5.3664,3817.2,3817.1,4.2636]
[1754564625497,2.1659,3817.2,3817.1,5.1625]
[1754564625900,0.52385,3817.1,3817.0,3.2078]
[1754564626107,5.3664,3816.8,3816.7,0.5239]
[1754564626510,0.52391,3816.7,3816.6,1.4921]
[1754564626702,5.15221,3816.7,3816.6,2.7261]
[1754564626903,4.6283,3816.7,3816.6,0.8659]
[1754564627100,4.6283,3816.7,3816.6,3.2966]
[1754564627504,1.4954,3817.0,3816.9,5.68638]
[1754564627701,4.6283,3817.0,3816.9,4.78748]
[1754564627900,3.7259,3817.0,3816.9,0.6262]
[1754564628111,4.6283,3817.0,3816.9,4.2636]
[1754564628509,2.1659,3817.0,3816.9,5.1625]
[1754564628708,1.0024,3817.3,3816.9,4.40958]
[1754564628910,20.5869,3817.3,3817.2,5.68634]
[1754564629115,23.0493,3817.3,3817.2,4.78744]
[1754564629811,22.4368,3817.3,3817.2,4.78744]
[1754564630216,3.1683,3817.5,3817.4,4.78741]
[1754564630516,23.0483,3817.5,3817.4,3.2966]
[1754564630717,23.0483,3817.5,3817.4,2.7261]
[1754564631518,23.0473,3817.5,3817.4,2.7261]
[1754564633511,3.63719,3817.5,3817.4,2.7261]
[1754564633707,18.94279,3817.5,3817.4,5.1625]
[1754564633916,21.10869,3817.5,3817.4,5.1625]
[1754564634108,22.95859,3817.5,3817.4,3.2966]
[1754564634312,23.57109,3817.5,3817.4,2.7261]
[1754564634708,23.57109,3817.5,3817.4,4.2636]
[1754564635215,23.57009,3817.5,3817.4,4.2636]
[1754564635416,5.15209,3817.5,3817.4,4.2636]
[1754564635613,3.1683,3817.5,3817.4,5.1625]
[1754564635816,21.5843,3817.5,3817.4,5.1625]
[1754564636218,3.1683,3817.5,3817.4,5.1625]
[1754564636422,21.5843,3817.5,3817.4,5.1625]
[1754564636721,22.4318,3817.5,3817.4,4.2636]
[1754564636915,23.0443,3817.5,3817.4,4.2636]
[1754564637314,4.6283,3817.5,3817.4,4.2636]
[1754564637516,19.9104,3817.5,3817.4,4.2636]
[1754564637814,20.5809,3817.5,3817.4,5.1625]
[1754564638011,23.0433,3817.5,3817.4,4.2636]
[1754564639417,4.6283,3817.5,3817.4,4.2636]
[1754564639612,22.4308,3817.5,3817.4,5.0905]
[1754564639922,22.4308,3817.5,3817.4,4.2636]
[1754564640226,23.0034,3817.5,3817.4,4.2636]
[1754564641018,4.5884,3817.5,3817.4,4.2636]
[1754564641220,23.0014,3817.5,3817.4,4.2636]
[1754564641820,3.2078,3818.1,3817.4,4.2636]
[1754564641821,0.9564,3818.1,3818.0,0.52373]
[1754564642122,23.35122,3818.1,3818.0,4.3975]
[1754564642818,22.8275,3818.1,3818.0,4.3975]
[1754564643025,4.1642,3818.5,3818.4,3.398]
[1754564643218,23.7921,3818.5,3818.4,4.3975]
[1754564643418,6.1965,3818.5,3818.4,4.3975]
[1754564643616,6.1965,3818.5,3818.4,3.398]
[1754564643617,3.2078,3818.5,3818.4,3.398]
[1754564643823,26.0343,3818.5,3818.4,4.3975]
[1754564644219,25.4617,3818.5,3818.4,5.2244]
[1754564644518,0.9564,3818.9,3818.5,0.52367]
[1754564644723,21.4375,3818.8,3818.7,5.2244]
[1754564644923,21.4355,3818.8,3818.7,5.2244]
[1754564645125,3.2078,3819.4,3818.7,3.1086]
[1754564645323,3.8429,3819.2,3819.1,4.92107]
[1754564645525,20.4791,3819.2,3819.1,5.74797]
[1754564646127,1.37774,3819.5,3819.4,5.2244]
[1754564646325,23.34804,3819.5,3819.4,4.3975]
[1754564646828,4.93904,3819.5,3819.4,4.3975]
[1754564647030,23.34704,3819.5,3819.4,4.3975]
[1754564647226,4.93904,3819.5,3819.4,4.3975]
[1754564647421,23.34704,3819.5,3819.4,4.3975]
[1754564647925,26.55484,3819.5,3819.4,4.3975]
[1754564649330,4.93911,3818.9,3818.8,3.7912]
[1754564649524,3.55019,3818.3,3818.2,6.1505]
[1754564650224,18.92766,3818.6,3818.5,4.3975]
[1754564650429,18.92766,3818.6,3818.5,5.2244]
[1754564650726,0.52362,3818.9,3818.7,5.2244]
[1754564650928,5.90368,3819.1,3819.0,2.1158]
[1754564651124,0.52353,3819.5,3819.2,0.52356]
[1754564651323,3.0265,3819.5,3819.4,5.2244]
[1754564651720,2.0701,3819.5,3819.4,5.2244]
[1754564651921,1.4216,3819.5,3819.4,5.2244]
[1754564652118,22.76839,3819.8,3819.7,2.7917]
[1754564652330,23.34099,3819.8,3819.7,2.7917]
[1754564652528,21.4285,3819.8,3819.7,3.398]
[1754564652728,21.4285,3819.8,3819.7,4.3975]
[1754564652921,1.4216,3819.8,3819.7,5.2244]
[1754564653122,21.4285,3819.8,3819.7,5.2244]
[1754564653323,22.8175,3819.8,3819.7,4.3975]
[1754564653528,22.8175,3819.8,3819.7,2.7917]
[1754564653727,1.2159,3819.5,3819.4,3.2078]
[1754564653928,3.8429,3819.5,3819.4,7.6053]
[1754564654135,2.0701,3819.5,3819.4,7.6053]
[1754564654327,3.0265,3819.5,3819.4,7.6053]
[1754564654626,4.4155,3819.5,3819.4,5.3667]
[1754564655024,4.4155,3819.5,3819.4,3.2078]
[1754564655225,4.4155,3818.9,3818.8,1.5095]
[1754564655431,4.4155,3818.9,3818.8,2.7917]
[1754564655633,3.4155,3818.9,3818.8,3.398]
[1754564655832,3.4155,3818.9,3818.8,4.3975]
[1754564656129,3.4155,3818.6,3818.5,4.49]
[1754564656332,21.8135,3818.6,3818.5,1.2822]
[1754564656633,21.8135,3818.6,3818.5,2.1589]
[1754564656830,21.8135,3818.6,3818.5,3.7912]
[1754564657023,1.4216,3818.6,3818.5,5.74805]
[1754564657224,3.0849,3819.0,3818.9,1.5095]
[1754564657438,3.93914,3818.7,3818.6,1.5095]
[1754564657630,4.1012,3818.7,3818.6,2.7917]
[1754564658523,4.1012,3818.7,3818.4,0.9995]
[1754564658524,3.5722,3818.5,3818.4,4.3975]
[1754564658729,4.0958,3819.0,3818.9,4.3975]
[1754564659130,22.4918,3819.0,3818.9,4.3975]
[1754564659330,23.0208,3819.0,3818.9,2.7917]
[1754564659636,4.62485,3818.6,3818.5,2.7917]
[1754564659828,3.5338,3818.4,3818.3,4.3975]
[1754564660035,4.1012,3818.4,3818.3,4.3975]
[1754564660233,0.52372,3818.2,3818.0,3.2078]
[1754564660435,4.1012,3818.1,3818.0,2.7917]
[1754564661638,3.5388,3817.8,3817.6,3.2078]
[1754564661840,4.0408,3817.4,3817.3,4.3975]
[1754564662132,2.82973,3817.3,3817.2,1.5095]
[1754564662340,4.56463,3817.3,3817.2,3.7912]
[1754564662526,4.0408,3817.3,3817.2,4.3975]
[1754564662733,0.6655,3817.6,3817.2,5.2244]
[1754564663030,4.6294,3817.7,3817.6,5.2244]
[1754564663335,7.2486,3817.7,3817.6,2.1589]
[1754564664031,7.2486,3817.7,3817.3,0.9995]
[1754564664032,2.0191,3817.4,3817.3,4.3975]
[1754564664236,4.0408,3817.4,3817.3,4.3975]
[1754564664434,4.0408,3817.1,3817.0,3.7912]
[1754564664732,3.5388,3817.1,3817.0,4.3975]
[1754564664938,1.4216,3817.3,3817.2,3.7149]
[1754564665139,1.4216,3817.3,3817.2,5.2244]
[1754564665938,2.0871,3817.3,3817.2,5.2244]
[1754564666634,2.0871,3817.3,3817.2,4.3975]
[1754564667140,2.0871,3817.3,3817.2,5.2244]
[1754564667334,0.52381,3817.5,3816.8,3.2078]
[1754564667335,1.4216,3817.6,3817.5,4.92129]
[1754564667639,19.8166,3817.7,3817.6,5.2244]
[1754564667837,0.5674,3818.0,3817.9,1.5095]
[1754564668037,2.7356,3818.0,3817.9,4.3975]
[1754564668239,21.9338,3818.0,3817.9,4.3975]
[1754564669540,3.5388,3818.0,3817.9,4.3975]
[1754564669732,3.2078,3818.2,3818.0,0.52373]
[1754564669939,24.2271,3818.2,3818.1,4.194]
[1754564670140,24.7168,3818.2,3818.1,4.194]
[1754564670437,3.4724,3818.2,3818.1,4.194]
[1754564670645,21.8664,3818.2,3818.1,5.0967]
[1754564670840,3.7594,3818.6,3818.5,2.0617]
[1754564671145,6.3218,3818.6,3818.5,4.194]
[1754564671643,7.1699,3818.6,3818.5,4.194]
[1754564672239,3.2078,3818.6,3818.5,2.7234]
[1754564672443,5.8966,3818.6,3818.5,4.194]
[1754564672644,6.6802,3818.6,3818.5,4.194]
[1754564672847,7.1699,3818.6,3818.5,4.194]
[1754564675746,22.9975,3818.6,3818.5,5.0967]
[1754564676637,5.8966,3818.6,3818.5,5.0967]